bitfinex-derivatives/quotes_BTCF0:USTF0_20210708
["timestamp","ask_amount","ask_price","bid_price","bid_amount"]
[1625724202446,0.002,33102.0,33091.0,0.952323]
[1625724202597,0.002,33102.0,33092.0,0.01226857]
[1625724202749,0.002,33102.0,33092.0,1.22075385]
[1625724202896,0.24057544,33114.0,33097.0,0.34779952]
[1625724203047,0.24057544,33114.0,33099.0,0.34777384]
[1625724203196,0.24057544,33114.0,33102.0,0.34774785]
[1625724203495,0.24057544,33114.0,33103.0,0.449203]
[1625724203646,0.24057544,33114.0,33103.0,0.45305506]
[1625724203798,0.24057544,33114.0,33103.0,0.80056335]
[1625724203947,0.24057544,33114.0,33105.0,0.78762421]
[1625724204096,0.24057544,33114.0,33106.0,0.5]
[1625724204246,0.24057544,33114.0,33106.0,1.91314676]
[1625724204397,0.24057544,33122.0,33106.0,1.95869676]
[1625724204547,0.24057544,33122.0,33106.0,1.97479132]
[1625724204696,0.24057544,33122.0,33106.0,2.32215475]
[1625724204847,0.24057544,33122.0,33106.0,2.33104519]
[1625724204997,1.18907544,33125.0,33106.0,4.21875568]
[1625724205148,0.9485,33125.0,33110.0,0.34686908]
[1625724205300,0.15087926,33140.0,33111.0,0.51223342]
[1625724205447,0.15087926,33140.0,33112.0,0.34711996]
[1625724205597,0.15087926,33140.0,33113.0,0.5]
[1625724205748,0.15087926,33140.0,33113.0,1.2997058]
[1625724205898,0.15087926,33140.0,33114.0,0.00385061]
[1625724206048,0.15087926,33140.0,33114.0,0.35070635]
[1625724206197,0.15087926,33140.0,33139.0,0.24057544]
[1625724206363,0.15087926,33140.0,33139.0,0.56497544]
[1625724208674,0.15087926,33140.0,33137.0,0.24057544]
[1625724210249,0.24057544,33138.0,33137.0,0.24057544]
[1625724210551,0.24057544,33138.0,33130.0,0.24057544]
[1625724210700,0.57645544,33138.0,33130.0,0.24057544]
[1625724211226,0.57645544,33138.0,33115.0,0.34772634]
[1625724211375,0.57645544,33138.0,33116.0,0.34827245]
[1625724211524,0.57645544,33138.0,33116.0,0.35213279]
[1625724211825,0.57645544,33138.0,33117.0,0.00386065]
[1625724211976,0.57645544,33138.0,33117.0,0.45849865]
[1625724212123,0.57645544,33138.0,33117.0,0.00386065]
[1625724212273,0.72372632,33118.0,33116.0,0.453523]
[1625724212424,0.72372632,33118.0,33113.0,0.58920254]
[1625724212574,0.002,33118.0,33117.0,0.69985346]
[1625724212724,0.002,33118.0,33117.0,1.18206446]
[1625724213024,0.002,33118.0,33117.0,0.73135346]
[1625724213177,0.15087926,33140.0,33117.0,1.7761046]
[1625724213324,0.15087926,33140.0,33117.0,2.2195796]
[1625724213474,0.15087926,33140.0,33119.0,0.34821782]
[1625724213775,0.15087926,33140.0,33120.0,0.80313516]
[1625724213924,0.15087926,33140.0,33120.0,1.13058507]
[1625724214074,0.15087926,33140.0,33121.0,0.34802648]
[1625724214227,0.24057544,33124.0,33123.0,0.24057544]
[1625724214676,0.21027544,33124.0,33123.0,0.24057544]
[1625724214824,0.21027544,33124.0,33123.0,0.24443544]
[1625724215275,0.17427544,33124.0,33123.0,0.27593544]
[1625724215426,0.17107544,33124.0,33123.0,0.27593544]
[1625724216178,0.17107544,33124.0,33123.0,0.24443544]
[1625724218809,0.17107544,33124.0,33118.0,0.34857538]
[1625724218960,0.49865544,33124.0,33118.0,0.34857538]
[1625724219113,0.49865544,33124.0,33117.0,0.001]
[1625724219410,0.49865544,33124.0,33118.0,0.00385927]
[1625724220311,0.48115088,33119.0,33118.0,0.00385927]
[1625724221375,0.48115088,33119.0,33108.0,0.64736673]
[1625724221542,0.48115088,33119.0,33105.0,1.39795083]
[1625724221543,0.48115088,33119.0,33107.0,0.003]
[1625724221847,0.48115088,33119.0,33108.0,0.00385714]
[1625724222263,0.72172632,33109.0,33108.0,0.00385714]
[1625724222413,0.72172632,33109.0,33107.0,0.003]
[1625724222414,0.97969632,33109.0,33107.0,0.003]
[1625724224372,0.24057544,33108.0,33106.0,0.003]
[1625724225642,0.24057544,33108.0,33096.0,0.0001]
[1625724226395,0.72172632,33097.0,33096.0,0.0001]
[1625724227743,0.72172632,33097.0,33096.0,0.70394527]
[1625724228044,0.72172632,33097.0,33096.0,0.70008648]
[1625724228193,0.43115088,33097.0,33096.0,1.94114473]
[1625724228342,0.32715088,33097.0,33096.0,2.42229561]
[1625724228568,0.32715088,33097.0,33096.0,3.82207379]
[1625724228717,0.28715088,33097.0,33096.0,3.82207379]
[1625724228869,0.27055088,33097.0,33096.0,3.82207379]
[1625724229018,0.26095088,33097.0,33096.0,3.82207379]
[1625724229175,0.26095088,33097.0,33096.0,3.85357379]
[1625724229470,0.26095088,33097.0,33096.0,5.43138245]
[1625724229645,0.48115088,33108.0,33096.0,5.93138245]
[1625724229783,0.48115088,33108.0,33097.0,0.01236431]
[1625724229928,0.48115088,33108.0,33107.0,0.70119325]
[1625724230069,0.48115088,33108.0,33107.0,0.93796325]
[1625724230219,0.48115088,33108.0,33107.0,2.16499757]
[1625724230371,0.48115088,33108.0,33107.0,0.94182094]
[1625724230674,0.48115088,33108.0,33107.0,2.1688413]
[1625724230819,0.48115088,33108.0,33107.0,0.94182094]
[1625724231120,0.48115088,33108.0,33107.0,2.16915854]
[1625724231431,0.48115088,33108.0,33107.0,3.5748406]
[1625724231870,0.48115088,33108.0,33107.0,3.58723615]
[1625724232169,0.48115088,33108.0,33107.0,3.5748406]
[1625724233748,0.48115088,33108.0,33107.0,2.16915854]
[1625724234049,0.48115088,33108.0,33107.0,3.57576441]
[1625724238400,0.48115088,33108.0,33107.0,3.81633985]
[1625724239155,0.48115088,33108.0,33107.0,3.82875207]
[1625724239451,0.48115088,33108.0,33107.0,3.81633985]
[1625724239750,0.48115088,33108.0,33107.0,3.57576441]
[1625724240502,0.83215088,33108.0,33107.0,3.57576441]
[1625724240652,0.83215088,33108.0,33107.0,3.33899441]
[1625724241253,0.83215088,33108.0,33107.0,1.59199441]
[1625724241404,0.83215088,33108.0,33107.0,0.18538854]
[1625724241706,0.83215088,33108.0,33105.0,0.001]
[1625724242457,0.24057544,33106.0,33105.0,0.001]
[1625724245383,0.24057544,33106.0,33103.0,0.001]
[1625724246433,0.24057544,33104.0,33103.0,0.001]
[1625724246885,0.24057544,33104.0,33103.0,0.00485031]
[1625724247033,0.24057544,33104.0,33103.0,0.001]
[1625724247333,0.24057544,33104.0,33103.0,0.00485043]
[1625724251396,0.24057544,33104.0,33103.0,1.06001164]
[1625724251923,0.24057544,33104.0,33103.0,1.40822164]
[1625724252599,0.24057544,33104.0,33103.0,2.81510926]
[1625724252824,0.001,33112.0,33103.0,2.82751607]
[1625724252974,0.001,33112.0,33104.0,0.01240612]
[1625724253126,0.001,33112.0,33110.0,1.05505902]
[1625724253276,0.001,33112.0,33110.0,1.27311902]
[1625724253426,0.001,33112.0,33111.0,1.05888303]
[1625724254578,0.96330176,33112.0,33111.0,1.05888303]
[1625724254711,0.96330176,33112.0,33111.0,0.00384823]
[1625724255301,0.96330176,33112.0,33107.0,0.00384919]
[1625724255450,1.22100176,33112.0,33107.0,0.00384919]
[1625724255602,1.22100176,33112.0,33104.0,0.00384919]
[1625724255753,1.22100176,33112.0,33104.0,1.05936302]
[1625724255903,1.22100176,33112.0,33108.0,0.00384917]
[1625724256201,1.22100176,33112.0,33105.0,1.05552447]
[1625724256202,1.22100176,33112.0,33105.0,1.05937373]
[1625724256352,1.22100176,33112.0,33109.0,0.0038491]
[1625724256502,0.96330176,33112.0,33109.0,0.0038491]
[1625724256651,0.96330176,33112.0,33106.0,0.00384901]
[1625724256953,0.96330176,33112.0,33106.0,1.05911925]
[1625724257402,0.96230176,33112.0,33109.0,0.001]
[1625724257552,0.96230176,33112.0,33109.0,0.25358]
[1625724257853,0.96230176,33112.0,33110.0,0.00384891]
[1625724266716,0.96230176,33112.0,33109.0,0.00384239]
[1625724266865,0.96230176,33112.0,33111.0,0.00384239]
[1625724267165,0.96230176,33112.0,33109.0,0.00384242]
[1625724267767,0.95410176,33112.0,33109.0,0.00384242]
[1625724268369,0.95410176,33112.0,33109.0,1.06101588]
[1625724268819,0.95410176,33112.0,33110.0,0.00384492]
[1625724270173,0.95410176,33112.0,33110.0,1.06204512]
[1625724270621,0.95410176,33112.0,33110.0,1.27614512]
[1625724270773,0.95410176,33112.0,33111.0,1.0620053]
[1625724271224,0.95410176,33112.0,33111.0,0.00384476]
[1625724271748,0.95410176,33112.0,33110.0,0.00384509]
[1625724272048,0.95410176,33112.0,33109.0,0.00384512]
[1625724272349,0.95410176,33112.0,33111.0,0.00384512]
[1625724272649,0.95410176,33112.0,33110.0,0.00384525]
[1625724272803,0.95410176,33112.0,33111.0,0.00384518]
[1625724273099,0.95410176,33112.0,33109.0,1.06281916]
[1625724273250,1.24054176,33112.0,33109.0,1.06281916]
[1625724273400,1.24054176,33112.0,33110.0,0.00384552]
[1625724273700,1.05212624,33111.0,33110.0,0.00384552]
[1625724273850,2.27871529,33111.0,33110.0,0.00384552]
[1625724274000,2.27871529,33111.0,33109.0,0.00384613]
[1625724274150,3.67957538,33111.0,33110.0,0.00384637]
[1625724274450,3.67957538,33111.0,33108.0,0.001]
[1625724274751,3.67654824,33109.0,33108.0,0.001]
[1625724274976,3.67654824,33109.0,33108.0,0.00484641]
[1625724275278,3.67654824,33109.0,33108.0,0.00384641]
[1625724276180,2.27598344,33109.0,33108.0,0.00384641]
[1625724278730,1.05046736,33109.0,33108.0,0.00384641]
[1625724279182,2.28033473,33109.0,33108.0,0.00384641]
[1625724281137,3.68511488,33109.0,33108.0,0.00384641]
[1625724281438,4.2122064,33109.0,33108.0,0.00384641]
[1625724282410,4.4765764,33109.0,33108.0,0.00384641]
[1625724287143,4.4765764,33109.0,33107.0,0.001]
[1625724287294,6.28796871,33108.0,33107.0,0.001]
[1625724287446,6.28796871,33108.0,33106.0,0.001]
[1625724287818,4.20755436,33107.0,33106.0,0.001]
[1625724288118,4.70755436,33107.0,33106.0,0.001]
[1625724288291,6.28453517,33107.0,33106.0,0.001]
[1625724288725,6.76568605,33107.0,33106.0,0.001]
[1625724289050,6.76568605,33107.0,33093.0,0.56123019]
[1625724289170,1.74817298,33094.0,33091.0,0.004]
[1625724289334,0.5,33093.0,33091.0,0.004]
[1625724289487,0.52424806,33092.0,33082.0,1.41579526]
[1625724289621,0.08758963,33089.0,33085.0,1.41581625]
[1625724289929,0.26274326,33095.0,33088.0,1.4145631]
[1625724290071,0.26274326,33095.0,33088.0,1.7355031]
[1625724290223,0.08767815,33096.0,33094.0,4.9497]
[1625724290383,0.08784541,33103.0,33095.0,1.41719065]
[1625724290525,0.08784541,33103.0,33096.0,0.0124765]
[1625724290673,0.26352633,33106.0,33100.0,1.41410196]
[1625724290975,0.26352633,33106.0,33097.0,0.00384034]
[1625724290976,0.50421268,33107.0,33101.0,1.41397447]
[1625724291125,0.24057544,33107.0,33102.0,1.41415206]
[1625724291277,0.15117544,33107.0,33102.0,1.69236206]
[1625724291425,0.11117544,33107.0,33105.0,1.41403938]
[1625724291723,0.11117544,33107.0,33106.0,1.41398467]
[1625724291873,0.11117544,33107.0,33106.0,1.42645054]
[1625724292025,0.11117544,33107.0,33106.0,1.43028959]
[1625724292256,0.11117544,33107.0,33106.0,3.02097261]
[1625724292407,7.544e-05,33107.0,33106.0,3.02097261]
[1625724292710,7.544e-05,33107.0,33106.0,3.50212349]
[1625724293901,0.24057544,33111.0,33106.0,3.50212349]
[1625724294052,0.24057544,33111.0,33107.0,0.01246157]
[1625724294200,0.24057544,33111.0,33110.0,3.0043682]
[1625724294350,0.24057544,33111.0,33110.0,3.3356682]
[1625724294500,0.002,33117.0,33110.0,3.3481295]
[1625724294651,0.002,33117.0,33116.0,3.72547477]
[1625724294801,0.002,33117.0,33116.0,3.73792976]
[1625724295252,0.19603701,33122.0,33116.0,3.74174767]
[1625724295403,0.19603701,33122.0,33121.0,1.41353143]
[1625724295551,0.19603701,33122.0,33121.0,1.75749143]
[1625724295704,0.19603701,33122.0,33121.0,1.7613091]
[1625724295852,0.19603701,33122.0,33121.0,0.34777767]
[1625724296454,0.46062408,33122.0,33121.0,0.34777767]
[1625724296601,0.46062408,33122.0,33121.0,0.00381767]
[1625724296774,0.16573701,33122.0,33121.0,0.46395311]
[1625724296932,0.16573701,33122.0,33121.0,1.8766301]
[1625724297065,0.16573701,33122.0,33121.0,1.88907655]
[1625724297666,0.16573701,33122.0,33121.0,3.47834945]
[1625724297815,0.004,33125.0,33121.0,3.47834945]
[1625724297956,0.004,33125.0,33122.0,0.01243079]
[1625724298106,0.004,33125.0,33124.0,1.41102087]
[1625724298556,0.004,33125.0,33124.0,1.41483792]
[1625724298708,0.24457544,33125.0,33124.0,1.41483792]
[1625724299305,0.24457544,33125.0,33124.0,0.00381705]
[1625724300207,0.24457544,33125.0,33123.0,0.0038172]
[1625724300357,0.24457544,33125.0,33124.0,0.00381723]
[1625724300658,0.24457544,33125.0,33123.0,0.00381726]
[1625724301789,0.24457544,33125.0,33123.0,1.4144849]
[1625724301939,0.004,33125.0,33124.0,1.40962398]
[1625724302234,0.004,33125.0,33124.0,1.42584894]
[1625724302535,0.24557544,33130.0,33124.0,1.42584894]
[1625724302536,0.005,33130.0,33124.0,3.01008014]
[1625724302685,0.08832915,33136.0,33129.0,0.72172632]
[1625724302835,1.47506789,33138.0,33129.0,0.72172632]
[1625724302836,0.24057544,33138.0,33129.0,2.46734484]
[1625724302985,0.23416518,33139.0,33130.0,0.453347]
[1625724303135,0.15087926,33140.0,33132.0,1.40582869]
[1625724303287,1.23430042,33143.0,33131.0,1.40389063]
[1625724303288,0.17623503,33143.0,33131.0,1.40389063]
[1625724303434,0.52835297,33144.0,33133.0,0.5]
[1625724303585,0.04071771,33146.0,33134.0,1.40273665]
[1625724303735,0.79266144,33147.0,33135.0,0.5]
[1625724303887,0.79266144,33147.0,33136.0,0.01232027]
[1625724304035,0.52820601,33154.0,33146.0,4.8773]
[1625724304186,0.52820601,33154.0,33146.0,5.13775]
[1625724304336,0.70416282,33158.0,33148.0,0.6990999]
[1625724304488,0.70416282,33158.0,33146.0,5.13775]
[1625724304489,0.0702,33157.0,33150.0,0.69872]
[1625724304787,0.0702,33157.0,33156.0,0.96230176]
[1625724304937,0.0702,33157.0,33156.0,1.24632176]
[1625724305388,0.4102,33157.0,33156.0,1.24632176]
[1625724305690,0.34,33157.0,33156.0,1.24632176]
[1625724305839,0.70255142,33162.0,33156.0,1.24632176]
[1625724305988,0.70255142,33162.0,33156.0,0.96230176]
[1625724306442,0.70254899,33161.0,33156.0,0.96230176]
[1625724306739,0.94312443,33161.0,33160.0,0.24057544]
[1625724307566,0.94312443,33161.0,33156.0,0.72172632]
[1625724307567,0.42942456,33157.0,33156.0,0.72172632]
[1625724309670,0.42942456,33157.0,33156.0,0.48115088]
[1625724309822,1.76942456,33157.0,33156.0,0.48115088]
[1625724310725,0.24057544,33157.0,33156.0,0.57245088]
[1625724310874,0.13527544,33161.0,33156.0,0.57245088]
[1625724311030,0.13527544,33161.0,33156.0,0.84991088]
[1625724311173,0.10817544,33161.0,33156.0,0.75861088]
[1625724312224,0.48115088,33165.0,33156.0,0.75861088]
[1625724312225,0.24057544,33165.0,33156.0,0.75861088]
[1625724312376,1.22379337,33170.0,33156.0,0.75861088]
[1625724312534,1.22373839,33172.0,33157.0,0.0914]
[1625724312677,1.22370491,33174.0,33157.0,0.0914]
[1625724312826,1.22370491,33174.0,33171.0,0.96230176]
[1625724312977,1.39849493,33176.0,33171.0,1.21486176]
[1625724312978,1.22366766,33176.0,33171.0,1.21486176]
[1625724313275,1.22365913,33175.0,33171.0,1.21486176]
[1625724313426,1.22194757,33177.0,33171.0,1.21486176]
[1625724313726,0.24057544,33178.0,33171.0,1.21486176]
[1625724314025,0.24057544,33178.0,33171.0,5.94436176]
[1625724314026,0.23057544,33178.0,33171.0,5.94436176]
[1625724314776,0.15069668,33180.0,33177.0,0.48115088]
[1625724315227,0.24057544,33182.0,33177.0,0.48115088]
[1625724315228,0.14827212,33182.0,33177.0,0.48115088]
[1625724315377,1.22133792,33183.0,33177.0,0.48115088]
[1625724315528,1.21922966,33186.0,33177.0,0.48115088]
[1625724315679,0.15914369,33187.0,33177.0,0.51265088]
[1625724316128,1.377995,33187.0,33177.0,0.51265088]
[1625724316430,0.15914369,33187.0,33177.0,0.51265088]
[1625724316730,0.15914369,33187.0,33186.0,0.72172632]
[1625724316878,0.87023933,33191.0,33186.0,1.05940632]
[1625724317028,1.21871746,33192.0,33186.0,1.05940632]
[1625724317342,0.002,33187.0,33186.0,1.05940632]
[1625724317631,1.21644968,33196.0,33186.0,1.05940632]
[1625724317792,0.004,33197.0,33186.0,1.54271232]
[1625724317928,1.18461325,33203.0,33186.0,1.54271232]
[1625724318084,1.20367064,33204.0,33186.0,1.60231232]
[1625724318228,1.21562787,33205.0,33186.0,1.60231232]
[1625724318529,1.21555934,33208.0,33187.0,0.5]
[1625724318829,1.5628124,33213.0,33207.0,0.72172632]
[1625724318830,0.24057544,33213.0,33207.0,0.72172632]
[1625724318981,1.80313406,33216.0,33207.0,0.67189167]
[1625724319280,1.04173406,33209.0,33207.0,0.67189167]
[1625724319579,0.90643406,33209.0,33207.0,0.67189167]
[1625724319728,0.72613406,33209.0,33207.0,0.67189167]
[1625724319883,1.03847108,33213.0,33207.0,0.70339167]
[1625724320033,1.03847108,33213.0,33207.0,0.39826167]
[1625724320178,1.03847108,33213.0,33207.0,0.36676167]
[1625724320781,0.24057544,33216.0,33212.0,0.24057544]
[1625724321081,0.24057544,33216.0,33207.0,0.36676167]
[1625724322059,0.17000102,33215.0,33207.0,0.36676167]
[1625724322807,0.17000102,33215.0,33214.0,0.48115088]
[1625724323107,0.17000102,33215.0,33214.0,0.24057544]
[1625724324612,0.17000102,33215.0,33207.0,0.36676167]
[1625724324764,0.24057544,33208.0,33207.0,0.36676167]
[1625724326265,0.24057544,33208.0,33203.0,0.24057544]
[1625724326415,0.24057544,33208.0,33204.0,0.003]
[1625724326790,0.24057544,33205.0,33204.0,0.003]
[1625724327093,0.24057544,33205.0,33199.0,5.2798]
[1625724327240,0.24057544,33205.0,33199.0,0.004]
[1625724327541,0.24057544,33205.0,33181.0,0.9022]
[1625724327690,0.24057544,33205.0,33172.0,0.9845]
[1625724327991,0.24057544,33205.0,33173.0,0.057]
[1625724328292,0.24057544,33205.0,33171.0,4.7295]
[1625724328900,0.72172632,33195.0,33186.0,0.24057544]
[1625724329347,0.72172632,33195.0,33193.0,0.005]
[1625724330848,0.24057544,33194.0,33193.0,0.005]
[1625724330999,0.24057544,33194.0,33179.0,0.24057544]
[1625724331149,0.24057544,33194.0,33171.0,4.7295]
[1625724332353,0.24057544,33194.0,33192.0,0.005]
[1625724333105,0.24057544,33194.0,33171.0,4.97007544]
[1625724334378,0.24057544,33194.0,33172.0,0.0913]
[1625724334527,0.24057544,33194.0,33173.0,0.0896]
[1625724334678,0.24057544,33194.0,33171.0,4.97007544]
[1625724334679,0.74057544,33194.0,33171.0,4.97007544]
[1625724334830,0.48115088,33172.0,33171.0,4.97007544]
[1625724334979,0.80396088,33172.0,33171.0,4.97007544]
[1625724336853,0.80396088,33172.0,33171.0,4.7295]
[1625724339558,0.057,33195.0,33171.0,5.321]
[1625724339722,1.37642806,33198.0,33171.0,5.64681]
[1625724339864,0.001,33198.0,33171.0,5.70763216]
[1625724340011,0.001,33198.0,33172.0,0.449891]
[1625724340160,0.001,33198.0,33172.0,1.01071261]
[1625724340309,0.001,33198.0,33173.0,0.00382123]
[1625724340459,0.15064566,33191.0,33174.0,0.0909]
[1625724340609,0.15064566,33191.0,33174.0,0.540325]
[1625724340909,0.15064566,33191.0,33190.0,0.96230176]
[1625724341059,0.15064566,33191.0,33190.0,1.30662176]
[1625724342259,0.15064566,33191.0,33190.0,1.31044246]
[1625724343009,0.16008981,33198.0,33190.0,1.31044246]
[1625724343308,0.16008981,33198.0,33196.0,4.0441]
[1625724343759,0.16008981,33198.0,33197.0,0.00381965]
[1625724343910,0.16008981,33198.0,33197.0,0.28975965]
[1625724344886,0.16008981,33198.0,33197.0,1.00766632]
[1625724345188,0.16008981,33198.0,33197.0,1.01148569]
[1625724345334,0.16008981,33198.0,33197.0,1.49235469]
[1625724345935,0.003,33208.0,33197.0,1.49235469]
[1625724346087,0.17000102,33215.0,33197.0,1.99235469]
[1625724346238,0.17000102,33215.0,33198.0,0.00381895]
[1625724346537,0.17000102,33215.0,33199.0,0.453206]
[1625724346837,0.17000102,33215.0,33212.0,0.24057544]
[1625724347137,0.17000102,33215.0,33208.0,0.24057544]
[1625724347287,0.28952,33213.0,33208.0,0.24057544]
[1625724347438,0.28852,33213.0,33208.0,0.24057544]
[1625724348187,0.4390658,33213.0,33208.0,0.24057544]
[1625724348338,0.1535458,33213.0,33208.0,0.24057544]
[1625724348937,0.1535458,33213.0,33212.0,0.48115088]
[1625724349237,0.1535458,33213.0,33212.0,0.82219088]
[1625724352693,0.1458458,33213.0,33212.0,0.82219088]
[1625724352844,0.16870102,33215.0,33212.0,0.48115088]
[1625724353145,0.24457544,33218.0,33212.0,0.48115088]
[1625724353291,0.003,33213.0,33212.0,0.48115088]
[1625724356372,0.15288408,33220.0,33212.0,0.48115088]
[1625724356523,0.3484597,33223.0,33212.0,0.80021088]
[1625724356824,0.001,33223.0,33212.0,0.80021088]
[1625724356975,0.001,33223.0,33222.0,0.72172632]
[1625724357125,0.001,33223.0,33222.0,0.99140632]
[1625724357424,0.001,33223.0,33222.0,5.90110632]
[1625724360584,0.001,33223.0,33222.0,0.99140632]
[1625724360732,0.001,33223.0,33222.0,0.72172632]
[1625724360882,0.24157544,33223.0,33222.0,0.72172632]
[1625724361035,0.24157544,33223.0,33222.0,0.48115088]
[1625724361181,0.24157544,33223.0,33212.0,0.24057544]
[1625724361333,0.34844881,33220.0,33212.0,0.24057544]
[1625724361932,0.34840036,33219.0,33212.0,0.24057544]
[1625724362308,0.34840111,33220.0,33212.0,0.24057544]
[1625724362908,0.24057544,33213.0,33212.0,0.24057544]
[1625724363059,0.50795544,33213.0,33207.0,0.24057544]
[1625724364710,0.85692495,33213.0,33207.0,0.24057544]
[1625724365011,0.24057544,33212.0,33207.0,0.24057544]
[1625724366360,0.47241544,33212.0,33190.0,0.18331573]
[1625724366511,0.52941544,33212.0,33190.0,0.18331573]
[1625724366662,1.04767474,33208.0,33190.0,0.18331573]
[1625724366813,0.3493413,33206.0,33181.0,0.33852171]
[1625724366963,0.24057544,33183.0,33182.0,0.24057544]
[1625724367114,0.46064544,33183.0,33182.0,0.24057544]
[1625724367263,0.51764544,33183.0,33182.0,0.24436855]
[1625724367413,0.51764544,33183.0,33182.0,0.00379311]
[1625724367562,0.51764544,33183.0,33173.0,1.01712072]
[1625724367714,0.51764544,33183.0,33172.0,0.24057544]
[1625724368014,0.51764544,33183.0,33173.0,0.00379413]
[1625724368167,0.46064544,33183.0,33173.0,0.00379413]
[1625724368318,0.057,33182.0,33173.0,0.00379413]
[1625724368990,0.24057544,33174.0,33173.0,0.00379413]
[1625724369141,0.57258544,33174.0,33173.0,0.00379413]
[1625724370871,0.57258544,33174.0,33173.0,0.68463177]
[1625724371019,0.24057544,33174.0,33173.0,0.68463177]
[1625724371169,0.24057544,33174.0,33173.0,1.70574926]
[1625724371325,0.24057544,33174.0,33173.0,0.68463177]
[1625724371620,0.24057544,33174.0,33173.0,1.70721511]
[1625724372068,0.24057544,33174.0,33173.0,2.90034916]
[1625724372218,0.54316544,33174.0,33173.0,2.90034916]
[1625724372370,0.54316544,33174.0,33173.0,1.70721511]
[1625724372669,0.48616544,33174.0,33173.0,0.68463177]
[1625724373273,0.48616544,33174.0,33173.0,0.00379413]
[1625724373721,0.48616544,33174.0,33173.0,0.68705145]
[1625724373872,0.48616544,33174.0,33173.0,1.71187984]
[1625724374334,0.54316544,33174.0,33173.0,1.71187984]
[1625724374499,0.54316544,33174.0,33173.0,0.68705145]
[1625724374655,0.48616544,33174.0,33173.0,0.68325732]
[1625724374810,0.48616544,33174.0,33170.0,0.68418863]
[1625724375075,0.24057544,33171.0,33168.0,0.68461867]
[1625724375521,0.24057544,33171.0,33169.0,0.68487186]
[1625724375826,0.057,33170.0,33168.0,0.68503545]
[1625724376575,0.057,33170.0,33167.0,0.68499749]
[1625724377028,0.057,33170.0,33168.0,0.0909]
[1625724377176,0.057,33170.0,33167.0,0.68499749]
[1625724379133,0.48115088,33168.0,33167.0,0.68499749]
[1625724380865,0.48115088,33168.0,33166.0,0.68462303]
[1625724381167,0.48115088,33168.0,33167.0,4.5965]
[1625724381315,0.48115088,33168.0,33167.0,4.81223]
[1625724381614,0.48115088,33168.0,33167.0,7.71748784]
[1625724382139,0.48115088,33168.0,33167.0,9.08407122]
[1625724382438,0.48115088,33168.0,33167.0,7.71748784]
[1625724382589,0.24057544,33174.0,33167.0,7.71748784]
[1625724382892,0.24057544,33174.0,33172.0,0.68312855]
[1625724383042,0.22377544,33174.0,33173.0,1.16399396]
[1625724384245,0.22377544,33174.0,33173.0,2.18797983]
[1625724384695,0.22377544,33174.0,33173.0,3.38215185]
[1625724384863,0.22377544,33174.0,33173.0,3.41365185]
[1625724385147,0.24257544,33182.0,33173.0,3.50345185]
[1625724385316,0.24257544,33182.0,33173.0,4.86730059]
[1625724385446,0.24257544,33182.0,33173.0,4.8710895]
[1625724385597,0.24257544,33182.0,33180.0,0.68119713]
[1625724385745,0.91696336,33194.0,33180.0,1.03207713]
[1625724385899,0.005,33197.0,33181.0,0.68115913]
[1625724386050,0.005,33197.0,33190.0,4.6683]
[1625724386195,0.005,33197.0,33190.0,5.01471]
[1625724386353,0.004,33193.0,33190.0,5.01471]
[1625724386948,0.004,33193.0,33190.0,5.04621]
[1625724387099,0.004,33193.0,33192.0,0.96230176]
[1625724387399,0.005,33198.0,33192.0,0.96230176]
[1625724387698,0.005,33198.0,33192.0,0.99380176]
[1625724389275,0.057,33199.0,33197.0,0.48115088]
[1625724389425,0.15907966,33200.0,33197.0,0.48115088]
[1625724389426,0.15907966,33200.0,33197.0,0.79317088]
[1625724389726,0.15907966,33200.0,33198.0,0.00378053]
[1625724390329,0.057,33205.0,33198.0,0.00378053]
[1625724390631,0.70154419,33209.0,33198.0,0.00378053]
[1625724390780,0.7015342,33210.0,33198.0,0.00378053]
[1625724390931,0.15057713,33206.0,33198.0,0.00378053]
[1625724391080,0.15057713,33206.0,33205.0,0.72172632]
[1625724391231,0.15057713,33206.0,33205.0,0.97267632]
[1625724391980,0.14367713,33206.0,33205.0,0.97645556]
[1625724392131,0.70142029,33215.0,33205.0,1.00795556]
[1625724392281,0.24057544,33217.0,33205.0,1.00795556]
[1625724392656,0.057,33216.0,33206.0,0.449911]
[1625724392956,0.057,33216.0,33206.0,0.45368996]
[1625724393109,0.057,33216.0,33215.0,0.72172632]
[1625724393256,0.057,33216.0,33215.0,1.00491632]
[1625724394310,0.52601537,33219.0,33215.0,1.00491632]
[1625724394458,0.58301537,33219.0,33215.0,1.00491632]
[1625724394609,0.057,33219.0,33215.0,1.00491632]
[1625724395058,0.58300544,33219.0,33215.0,1.00491632]
[1625724395207,0.58300544,33219.0,33215.0,1.24549176]
[1625724395509,0.057,33219.0,33215.0,1.24549176]
[1625724396709,0.58299906,33219.0,33215.0,1.24549176]
[1625724398584,0.52602498,33218.0,33215.0,1.24549176]
[1625724398734,0.057,33217.0,33215.0,1.24549176]
[1625724399561,0.52602333,33219.0,33215.0,1.24549176]
[1625724399713,0.001,33220.0,33215.0,1.24549176]
[1625724399861,0.001,33220.0,33215.0,1.27699176]
[1625724401288,0.001,33220.0,33219.0,0.24057544]
[1625724404289,1.05239704,33220.0,33219.0,0.24057544]
[1625724404442,1.10939704,33220.0,33219.0,0.24057544]
[1625724404592,2.33605145,33220.0,33219.0,0.24057544]
[1625724405117,2.33605145,33220.0,33215.0,0.48115088]
[1625724405267,1.53268576,33216.0,33215.0,0.48115088]
[1625724405417,1.58968576,33216.0,33215.0,0.08997544]
[1625724406019,2.81642176,33216.0,33215.0,0.08997544]
[1625724407220,2.81642176,33216.0,33211.0,4.7808]
[1625724407373,2.81642176,33216.0,33213.0,0.002]
[1625724407519,1.58968576,33216.0,33213.0,0.002]
[1625724407820,0.53815088,33216.0,33213.0,0.002]
[1625724408046,1.58953836,33216.0,33213.0,0.002]
[1625724408797,0.53815088,33216.0,33213.0,0.002]
[1625724409248,0.53815088,33216.0,33215.0,0.24057544]
[1625724411276,0.53815088,33216.0,33215.0,0.48115088]
[1625724412177,0.057,33216.0,33215.0,0.48115088]
[1625724412328,1.10805773,33221.0,33215.0,0.48115088]
[1625724412928,0.057,33221.0,33215.0,0.48115088]
[1625724413240,0.057,33221.0,33220.0,0.24057544]
[1625724413380,0.057,33221.0,33220.0,0.47321544]
[1625724414804,1.10791812,33221.0,33220.0,0.47321544]
[1625724415103,1.10791812,33221.0,33220.0,0.24057544]
[1625724415928,0.057,33221.0,33220.0,0.24057544]
[1625724416228,1.05095428,33222.0,33220.0,0.57519544]
[1625724416380,0.057,33222.0,33220.0,0.57519544]
[1625724416527,0.24057544,33224.0,33220.0,0.57519544]
[1625724416980,0.24057544,33224.0,33221.0,0.00375462]
[1625724417280,0.24057544,33224.0,33221.0,0.24433006]
[1625724417430,0.057,33223.0,33221.0,0.24433006]